Workbook

Sheet Drug Control Table
B2: Drug Control Funding FY 2023 - FY 2025 (dollars in millions)
B3: Department/Agency | C3: FY 2023 Final | D3: FY 2024 CR | E3: FY 2025 President’s Budget
B4: AmeriCorps………………………………………………………........................................................................ | C4: $40.5 | D4: $40.3 | E4: $40.3
B5: Appalachian Regional Commission………………………………………………………......................................................... | C5: 13.1 | D5: 13.0 | E5: 12.9
B6: Department of Agriculture:
B7: Office of Rural Development....................................................................................................................... | C7: 13.0 | D7: 13.5 | E7: 13.5
B8: U.S. Forest Service....................................................................................................................... | C8: 11.4 | D8: 11.4 | E8: 11.4
B9: Total USDA................................................................................................................................ | C9: =C7+C8 -> 24.4 | D9: =D7+D8 -> 24.9 | E9: =E7+E8 -> 24.9
B10: Court Services and Offender Supervision Agency for D.C. ....................................................... | C10: 69.1 | D10: 70.8 | E10: 73.1
B11: Department of Defense:
B12: Defense Security Cooperation Agency………………………………………………………...................... | C12: 68.7 | D12: 61.7 | E12: 90.6
B13: Drug Interdiction and Counterdrug Activities (incl. OPTEMPO)........................................ | C13: 1,031.6 | D13: 1,031.6 | E13: 941.5
B14: Defense Health Program............................................................................................................. | C14: 100.3 | D14: 77.0 | E14: 79.9
B15: Total DOD................................................................................................................................ | C15: =C12+C13+C14 -> 1,200.6 | D15: =D12+D13+D14 -> 1,170.3 | E15: =E12+E13+E14 -> 1,112.0
B16: Department of Education:
B17: Office of Elementary and Secondary Education........................................................................ | C17: 103.7 | D17: 71.8 | E17: 85.8
B18: Federal Judiciary:........................................................................................................................... | C18: 1,271.0 | D18: 1,285.4 | E18: 1,389.2
B19: Department of Health and Human Services:
B20: Administration for Children and Families................................................................................... | C20: 20.0 | D20: 20.0 | E20: 60.0
B21: Centers for Disease Control and Prevention............................................................................... | C21: 528.6 | D21: 528.6 | E21: 529.1
B22: Centers for Medicare and Medicaid Services1............................................................................ | C22: 13,130.0 | D22: 11,900.0 | E22: 11,990.0
B23: Food and Drug Administration………………............................................................................... | C23: 79.5 | D23: 79.5 | E23: 79.5
B24: Health Resources and Services Administration.......................................................................... | C24: 847.0 | D24: 1,547.0 | E24: 1,547.0
B25: Indian Health Service................................................................................................................... | C25: 144.7 | D25: 144.2 | E25: 154.8
B26: National Institute on Alcohol Effects and Alcohol-Associated Disorders2 ................................................................. | C26: 75.6 | D26: 75.4 | E26: 75.9
B27: National Institute on Drugs and Addiction2 ................................................................................................ | C27: 1,663.4 | D27: 1,662.7 | E27: 1,668.3
B28: Substance use And Mental Health Services Administration ……………………............ | C28: 4,500.8 | D28: 4,500.8 | E28: 4,529.5
B29: Total HHS................................................................................................................................. | C29: =SUM(C20:C28) -> 20,989.6 | D29: =SUM(D20:D28) -> 20,458.3 | E29: =SUM(E20:E28) -> 20,634.1
B30: Department of Homeland Security:
B31: Customs and Border Protection................................................................................................... | C31: 4,005.6 | D31: 4,005.6 | E31: 3,824.0
B32: Federal Emergency Management Agency................................................................................... | C32: 13.5 | D32: 13.5 | E32: 13.5
B33: Federal Law Enforcement Training Center.................................................................................. | C33: 56.0 | D33: 56.0 | E33: 58.5
B34: Immigration and Customs Enforcement...................................................................................... | C34: 674.1 | D34: 674.1 | E34: 721.7
B35: Science and Technology Directorate...................................................................................... | C35: 4.0 | D35: 4.0 | E35: 6.7
B36: U.S. Coast Guard.......................................................................................................................... | C36: 2,180.2 | D36: 2,180.2 | E36: 1,954.7
B37: Total DHS................................................................................................................................. | C37: =SUM(C31:C36) -> 6,933.4 | D37: =SUM(D31:D36) -> 6,933.4 | E37: =SUM(E31:E36) -> 6,579.1
B38: Department of Housing and Urban Development: | C38: 954.1 | D38: 954.1 | E38: 1,071.5
B39: Department of the Interior:
B40: Bureau of Indian Affairs............................................................................................................... | C40: 14.9 | D40: 14.9 | E40: 14.9
B41: Bureau of Land Management...................................................................................................... | C41: 5.1 | D41: 5.1 | E41: 5.1
B42: National Park Service................................................................................................................... | C42: 3.4 | D42: 3.4 | E42: 3.4
B43: Total DOI................................................................................................................................. | C43: =SUM(C40:C42) -> 23.4 | D43: =SUM(D40:D42) -> 23.4 | E43: =SUM(E40:E42) -> 23.4
B44: Department of Justice:
B45: Assets Forfeiture Program................................................................................................................. | C45: 242.3 | D45: 231.8 | E45: 231.8
B46: Bureau of Alcohol, Tobacco, Firearms and Explosives3........................................................................................................................ | C46: 43.9 | D46: 43.9 | E46: 75.4
B47: Bureau of Prisons........................................................................................................................ | C47: 4,090.5 | D47: 4,009.6 | E47: 4,054.8
B48: Criminal Division.......................................................................................................................... | C48: 48.1 | D48: 48.1 | E48: 48.0
B49: Drug Enforcement Administration3…………………............................................................... | C49: 3,144.6 | D49: 3,149.4 | E49: 3,339.2
B50: Federal Bureau of Investigation3………………........................................................................... | C50: 215.9 | D50: 175.0 | E50: 228.4
B51: Organized Crime Drug Enforcement Task Forces Program......................................................................... | C51: 550.5 | D51: 550.5 | E51: 550.5
B52: Office of Justice Programs3.......................................................................................................... | C52: 649.6 | D52: 724.5 | E52: 843.4
B53: U.S. Attorneys3.............................................................................................................................. | C53: 101.5 | D53: 100.2 | E53: 139.7
B54: United States Marshals Service3.................................................................................................. | C54: 1,086.4 | D54: 1,115.5 | E54: 1,409.6
B55: Total DOJ................................................................................................................................. | C55: =SUM(C45:C54) -> 10,173.3 | D55: =SUM(D45:D54) -> 10,148.6 | E55: =SUM(E45:E54) -> 10,920.8
B56: Department of Labor:
B57: Employment and Training Administration.................................................................................. | C57: 23.0 | D57: 24.8 | E57: 24.8
B58: Employment Benefits Security Administration.................................................................................. | C58: 0.0 | D58: 0.0 | E58: 1.4
B59: Office of Disability Employment.................................................................................. | C59: 0.8 | D59: 0.0 | E59: 0.0
B60: Office of Inspector General.............................................................................................. | C60: 1.8 | D60: 1.8 | E60: 1.8
B61: Office of Workers' Compensation Programs.................................................................................. | C61: 5.1 | D61: 5.4 | E61: 5.5
B62: Total DOL................................................................................................................................. | C62: =SUM(C57:C61) -> 30.7 | D62: =SUM(D57:D61) -> 32.0 | E62: 33.5
B63: Office of National Drug Control Policy:
B64: Salaries and Expenses.................................................................................................................................. | C64: 32.0 | D64: 32.0 | E64: 30.3
B65: High Intensity Drug Trafficking Areas Program........................................................................ | C65: 302.0 | D65: 302.0 | E65: 290.2
B66: Other Federal Drug Control Programs........................................................................................ | C66: 137.1 | D66: 137.1 | E66: 149.1
B67: Total ONDCP........................................................................................................................... | C67: =SUM(C64:C66) -> 471.1 | D67: =SUM(D64:D66) -> 471.1 | E67: =SUM(E64:E66) -> 469.6
B68: Department of State:
B69: Bureau of International Narcotics and Law Enforcement Affairs............................................... | C69: 285.7 | D69: 285.7 | E69: 348.1
B70: United States Agency for International Development................................................................ | C70: 65.5 | D70: 65.5 | E70: 59.0
B71: Total DOS................................................................................................................................ | C71: =SUM(C69:C70) -> 351.3 | D71: =SUM(D69:D70) -> 351.3 | E71: =SUM(E69:E70) -> 407.1
B72: Department of the Transportation:
B73: Federal Aviation Administration.................................................................................................. | C73: 24.4 | D73: 24.4 | E73: 31.9
B74: National Highway Traffic Safety Administration......................................................................... | C74: 17.8 | D74: 18.1 | E74: 17.6
B75: Total Transportation................................................................................................................................. | C75: =SUM(C73:C74) -> 42.2 | D75: =SUM(D73:D74) -> 42.5 | E75: =SUM(E73:E74) -> 49.5
B76: Department of the Treasury:
B77: Financial Crimes Enforcement Network................................................................................................................................ | C77: 2.1 | D77: 2.3 | E77: 2.3
B78: Internal Revenue Service................................................................................................................................ | C78: 85.2 | D78: 60.3 | E78: 60.3
B79: Office of Foreign Assets Control................................................................................................................................ | C79: 0.9 | D79: 1.1 | E79: 1.1
B80: Total Treasury................................................................................................................................. | C80: =SUM(C77:C79) -> 88.2 | D80: =SUM(D77:D79) -> 63.6 | E80: 63.7
B81: Department of Veterans Affairs:
B82: Veterans Health Administration.................................................................................................. | C82: 1,345.8 | D82: 1,375.5 | E82: 1,430.4
B83: US Postal Inspection Service……………………............…………........................................................ | C83: 71.7 | D83: 71.7 | E83: 71.7
B84: Total Federal Drug Budget 4........................................................................................................... | C84: =SUM(C4,C5,C9,C10,C15,C17,C18,C29,C37,C38,C43,C55,C62,C67,C71,C75,C80,C82,C83) -> $44,196.8 | D84: =SUM(D4,D5,D9,D10,D15,D17,D18,D29,D37,D38,D43,D55,D62,D67,D71,D75,D80,D82,D83) -> $43,601.8 | E84: =SUM(E4,E5,E9,E10,E15,E17,E18,E29,E37,E38,E43,E55,E62,E67,E71,E75,E80,E82,E83) -> $44,492.5
B85: 1 The CMS budget reflects only Medicare and Medicaid current law benefit costs as estimated by the CMS Office of the Actuary.
B86: 2 FY 2024 funding levels cited in this document are based on the Continuing Resolution in effect at the time of budget preparation (Public Law 118-22) and do not include HIV/AIDS transfers..
B87: 3FY 2025 President's Budget level includes mandatory funding from the Violent Crime Reduction and Prevention Fund.
B88: 4 Totals may not add due to rounding.
